bitfinex-derivatives/quotes_SOLF0:USTF0_20260316
["timestamp","ask_amount","ask_price","bid_price","bid_amount"]
[1773631781862,17.43512275,92.099,92.062,16.59149921]
[1773631782170,17.43512275,92.099,92.062,26.57443894]
[1773631782465,17.43512275,92.099,92.063,26.58797344]
[1773631782668,17.43512275,92.139,92.081,16.60503371]
[1773631782870,17.43512275,92.119,92.07,9.98293973]
[1773631783468,17.43512275,92.119,92.07,3.39477164]
[1773631785879,17.43512275,92.139,92.081,16.47543803]
[1773631786169,17.43512275,92.119,92.072,9.98293973]
[1773631786373,17.43512275,92.119,92.073,9.98293973]
[1773631786869,17.43512275,92.119,92.072,9.98293973]
[1773631787472,17.43512275,92.139,92.08,19.95090595]
[1773631787675,17.43512275,92.139,92.09,19.95090595]
[1773631787871,17.43512275,92.139,92.09,16.55613431]
[1773631791070,17.43512275,92.139,92.08,3.39477164]
[1773631791572,17.43512275,92.139,92.08,19.49342514]
[1773631793777,17.43512275,92.139,92.09,3.39477164]
[1773631793978,17.43512275,92.139,92.08,19.49342514]
[1773631799278,17.43512275,92.139,92.09,19.77518247]
[1773631799977,17.43512275,92.139,92.078,16.38041083]
[1773631800582,17.43512275,92.139,92.081,16.43186343]
[1773631801981,17.43326744,92.16,92.111,16.50280387]
[1773631802282,17.43326744,92.169,92.111,16.50280387]
[1773631802483,17.43326744,92.169,92.121,16.50280387]
[1773631803088,17.43326744,92.189,92.131,16.43740912]
[1773631803295,17.43326744,92.189,92.141,16.43740912]
[1773631803498,17.43326744,92.219,92.161,16.43740912]
[1773631803792,17.43326744,92.199,92.147,16.43740912]
[1773631803987,13.07326744,92.199,92.147,16.43740912]
[1773631804490,13.07326744,92.199,92.151,17.08106932]
[1773631804691,3.39477164,92.22,92.161,17.08106932]
[1773631804989,1.88791841,92.265,92.139,9.98293973]
[1773631804990,3.38744014,92.24,92.18,3.38744014]
[1773631805192,3.38744014,92.22,92.153,17.08106932]
[1773631805387,3.38744014,92.23,92.161,17.08106932]
[1773631805595,3.38744014,92.23,92.17,20.46850946]
[1773631805995,17.43326744,92.23,92.18,3.38744014]
[1773631806294,20.82070758,92.23,92.161,17.08106932]
[1773631806497,20.82070758,92.23,92.152,34.18]
[1773631806498,20.82070758,92.23,92.171,17.08106932]
[1773631806796,17.43326744,92.219,92.171,17.08106932]
[1773631807490,34.18,92.255,92.16,3.38744014]
[1773631807491,17.43326744,92.209,92.16,17.08106932]
[1773631807693,17.43326744,92.209,92.153,17.08106932]
[1773631807890,17.43326744,92.189,92.131,17.08106932]
[1773631808294,17.43326744,92.189,92.141,17.08106932]
[1773631808786,3.38744014,92.2,92.141,17.08106932]
[1773631809187,20.82070758,92.2,92.141,17.08106932]
[1773631809695,17.43326744,92.2,92.151,17.08106932]
[1773631810093,291.0,92.261,92.18,3.38744014]
[1773631810094,17.43326744,92.26,92.18,3.38744014]
[1773631810298,17.43326744,92.24,92.19,3.38744014]
[1773631810893,17.43326744,92.24,92.191,17.08106932]
[1773631811999,20.82070758,92.24,92.191,17.08106932]
[1773631812398,17.43326744,92.24,92.191,17.08106932]
[1773631812989,17.43326744,92.259,92.2,20.46850946]
[1773631813395,17.43326744,92.259,92.2,17.08106932]
[1773631814400,17.43326744,92.239,92.184,17.08106932]
[1773631814596,17.43326744,92.257,92.201,17.08106932]
[1773631814902,17.43326744,92.295,92.231,17.08106932]
[1773631815200,20.22983385,92.378,92.231,17.08106932]
[1773631815201,17.43326744,92.289,92.231,17.08106932]
[1773631815705,17.43326744,92.279,92.231,17.08106932]
[1773631817397,34.16,92.306,92.199,34.16]
[1773631817398,17.43326744,92.269,92.211,17.08106932]
[1773631817999,22.98770758,92.28,92.221,17.08106932]
[1773631818196,2.167,92.28,92.221,17.08106932]
[1773631818502,17.43326744,92.294,92.231,17.08106932]
[1773631818802,20.82070758,92.29,92.231,17.08106932]
[1773631819400,3.38744014,92.3,92.241,17.08106932]
[1773631819604,17.43326744,92.299,92.241,17.08106932]
[1773631819994,17.43326744,92.279,92.226,17.08106932]
[1773631820706,3.38744014,92.26,92.211,17.08106932]
[1773631820896,19.60026744,92.268,92.211,17.08106932]
[1773631821499,2.167,92.279,92.221,17.08106932]
[1773631821700,19.60026744,92.279,92.221,17.08106932]
[1773631821899,17.43326744,92.259,92.206,17.08106932]
[1773631822094,17.6436272,92.283,92.21,3.38744014]
[1773631822300,21.03106734,92.28,92.211,17.27646391]
[1773631822802,21.03106734,92.27,92.211,17.27646391]
[1773631823095,21.03106734,92.27,92.178,34.16]
[1773631823096,17.6436272,92.286,92.231,17.27646391]
[1773631823292,17.6436272,92.309,92.25,20.66390405]
[1773631823499,17.6436272,92.309,92.26,20.66390405]
[1773631823708,17.6436272,92.309,92.26,17.27646391]
[1773631823904,17.6436272,92.309,92.26,20.66390405]
[1773631824099,3.38744014,92.32,92.26,20.66390405]
[1773631824299,21.03106734,92.32,92.26,20.66390405]
[1773631824701,17.6436272,92.315,92.26,20.66390405]
[1773631824900,3.38744014,92.31,92.231,17.27646391]
[1773631825099,17.6436272,92.309,92.241,17.27646391]
[1773631825403,17.6436272,92.309,92.25,20.66390405]
[1773631825605,17.6436272,92.295,92.24,3.38744014]
[1773631825802,3.38744014,92.3,92.241,17.27646391]
[1773631826101,21.03106734,92.3,92.241,17.27646391]
[1773631827600,2.166,92.298,92.241,17.27646391]
[1773631827800,17.6436272,92.3,92.251,17.27646391]
[1773631828102,5.55344014,92.31,92.251,17.27646391]
[1773631828305,17.6436272,92.316,92.26,20.66390405]
[1773631828803,2.166,92.315,92.26,20.66390405]
[1773631829108,17.6436272,92.309,92.245,17.27646391]
[1773631829406,17.6436272,92.309,92.25,20.66390405]
[1773631829602,19.8096272,92.299,92.25,17.27646391]
[1773631829997,34.14,92.343,92.25,17.27646391]
[1773631829998,17.6436272,92.316,92.25,20.66390405]
[1773631830207,2.166,92.304,92.25,20.66390405]
[1773631830401,19.8096272,92.304,92.25,20.66390405]
[1773631830807,2.166,92.317,92.25,20.66390405]
[1773631831008,2.166,92.317,92.27,20.66390405]
[1773631831202,2.166,92.317,92.27,17.27646391]
[1773631832103,17.6436272,92.299,92.24,20.66390405]
[1773631832300,17.6436272,92.299,92.251,17.27646391]
[1773631832504,34.14,92.352,92.233,34.14]
[1773631832505,17.6436272,92.316,92.261,17.27646391]
[1773631832706,2.165,92.329,92.271,17.27646391]
[1773631833006,19.8086272,92.329,92.271,17.27646391]
[1773631833306,17.6436272,92.319,92.253,17.27646391]
[1773631834008,3.38744014,92.31,92.253,17.27646391]
[1773631834207,2.166,92.309,92.253,17.27646391]
[1773631834505,17.6436272,92.309,92.253,17.27646391]
[1773631834708,2.165,92.333,92.261,17.27646391]
[1773631834909,34.14,92.356,92.261,17.27646391]
[1773631834910,17.6436272,92.329,92.261,17.27646391]
[1773631835204,17.6436272,92.329,92.27,3.38744014]
[1773631835406,1.88536136,92.385,92.321,17.27646391]
[1773631835609,17.6436272,92.461,92.321,17.27646391]
[1773631835810,17.6436272,92.461,92.325,17.27646391]
[1773631836007,17.6436272,92.461,92.371,17.27646391]
[1773631836211,13.24017344,92.545,92.247,190.7]
[1773631836212,17.6436272,92.479,92.401,17.27646391]
[1773631836511,67.167235,92.715,92.411,17.27646391]
[1773631836512,17.6436272,92.5,92.411,17.27646391]
[1773631836906,17.6436272,92.459,92.392,17.27646391]
[1773631837304,34.14,92.521,92.392,17.27646391]
[1773631837305,17.6436272,92.479,92.392,17.27646391]
[1773631837900,17.6436272,92.499,92.392,17.27646391]
[1773631838305,17.6436272,92.581,92.392,17.27646391]
[1773631838504,34.12,92.58,92.373,6.18501058]
[1773631838814,8.02209127,92.5,92.381,17.27646391]
[1773631839111,36.281,92.533,92.401,17.27646391]
[1773631839408,34.12,92.547,92.421,17.27646391]
[1773631839611,8.02209127,92.54,92.421,17.27646391]
[1773631839909,8.02209127,92.55,92.431,17.27646391]
[1773631840512,17.6436272,92.569,92.451,17.27646391]
[1773631840711,17.6436272,92.549,92.451,17.27646391]
[1773631841810,17.6436272,92.589,92.481,17.27646391]
[1773631842704,17.6436272,92.569,92.481,17.27646391]
[1773631843211,17.6436272,92.599,92.491,17.27646391]
[1773631843409,17.6436272,92.665,92.561,17.27646391]
[1773631843613,17.6436272,92.659,92.561,17.27646391]
[1773631843809,8.02209127,92.64,92.561,17.27646391]
[1773631844010,17.6436272,92.599,92.525,17.27646391]
[1773631844222,17.6436272,92.686,92.501,17.27646391]
[1773631844412,17.6436272,92.686,92.59,8.02209127]
[1773631844713,17.6436272,92.669,92.573,17.27646391]
[1773631844908,17.6436272,92.629,92.51,8.02209127]
[1773631845114,17.6436272,92.629,92.511,17.27646391]
[1773631845615,17.6436272,92.629,92.531,17.27646391]
[1773631846006,17.6436272,92.609,92.531,17.27646391]
[1773631846707,17.6436272,92.599,92.51,17.27646391]
[1773631847113,17.6436272,92.619,92.511,17.27646391]
[1773631847315,17.6436272,92.617,92.511,17.27646391]
[1773631847818,17.6436272,92.615,92.513,17.27646391]
[1773631848214,17.6436272,92.638,92.531,17.27646391]
[1773631848618,8.02209127,92.62,92.531,17.27646391]
[1773631848917,17.6436272,92.619,92.531,17.27646391]
[1773631849315,27.82371847,92.64,92.531,17.27646391]
[1773631849519,17.6436272,92.659,92.561,17.27646391]
[1773631851811,17.6436272,92.659,92.544,34.06]
[1773631851812,17.6436272,92.722,92.621,17.27646391]
[1773631852117,17.6436272,92.719,92.621,17.27646391]
[1773631852520,17.43745601,92.699,92.621,17.27646391]
[1773631853217,17.43745601,92.699,92.583,17.44693217]
[1773631853617,17.43745601,92.699,92.591,17.44693217]
[1773631853913,34.04,92.743,92.59,8.02209127]
[1773631853914,17.43745601,92.709,92.593,17.44693217]
[1773631854119,17.43745601,92.689,92.593,17.44693217]
[1773631854719,34.04,92.743,92.593,17.44693217]
[1773631855017,32.25192091,92.898,92.67,8.02209127]
[1773631855216,32.25192091,92.898,92.566,108.013]
[1773631855217,32.25192091,92.898,92.597,107.977]
[1773631855414,32.25192091,92.898,92.743,1.87638505]
[1773631855614,32.25192091,92.819,92.743,1.87638505]
[1773631856711,31.76412598,92.842,92.743,1.87638505]
[1773631856914,31.76412598,92.859,92.75,8.02209127]
[1773631857114,32.01447859,92.839,92.743,1.87638505]
[1773631857319,107.408,93.089,92.744,107.807]
[1773631857518,34.02,93.022,92.745,224.08]
[1773631857721,8.02209127,92.9,92.745,224.08]
[1773631857918,107.418,93.081,92.745,224.08]
[1773631857919,34.02,92.967,92.745,224.08]
[1773631858120,8.02209127,92.89,92.745,224.08]
[1773631858322,34.02,92.973,92.8,8.02209127]
[1773631858522,8.02209127,92.9,92.77,8.02209127]
[1773631858822,8.02209127,92.94,92.745,224.08]
[1773631859019,34.02,92.995,92.84,8.02209127]
[1773631859221,29.53883669,93.003,92.841,34.0]
[1773631859420,29.53883669,93.003,92.85,8.02209127]
[1773631859616,29.53883669,92.969,92.851,34.0]
[1773631859819,29.53883669,92.939,92.851,34.0]
[1773631860015,29.53883669,92.939,92.82,8.02209127]
[1773631860222,29.31829746,92.899,92.78,8.02209127]
[1773631860520,29.31829746,92.859,92.761,34.0]
[1773631860724,8.02209127,92.96,92.761,34.0]
[1773631860725,29.31829746,92.883,92.761,34.0]
[1773631861026,29.31829746,92.91,92.761,34.0]
[1773631861225,29.31829746,92.91,92.81,8.02209127]
[1773631861523,29.63884171,92.938,92.84,8.02209127]
[1773631861828,29.63884171,92.929,92.8,8.02209127]
[1773631862023,29.65430732,92.869,92.656,107.909]
[1773631862223,29.65430732,92.869,92.663,107.9]
[1773631862423,29.65430732,92.869,92.75,8.02209127]
[1773631862623,29.65430732,92.869,92.751,33.98]
[1773631862930,33.98,92.92,92.659,189.82]
[1773631862931,29.65430732,92.849,92.748,33.98]
[1773631863124,29.67876947,92.909,92.743,33.98]
[1773631863427,29.67876947,92.934,92.82,8.02209127]
[1773631863731,29.67876947,92.929,92.821,33.98]
[1773631864523,29.67876947,92.929,92.83,8.02209127]
[1773631864718,29.67876947,92.929,92.821,33.98]
[1773631865226,29.67876947,92.929,92.63,107.94]
[1773631865435,28.83911575,92.869,92.66,33.96]
[1773631865732,28.83911575,92.869,92.74,7.94652611]
[1773631866226,28.83911575,92.869,92.737,33.96]
[1773631866424,28.83911575,92.869,92.76,7.94652611]
[1773631866826,28.83911575,92.869,92.737,33.96]
[1773631867026,28.83911575,92.869,92.75,7.94652611]
[1773631867229,28.83911575,92.869,92.77,7.94652611]
[1773631867431,29.22523507,92.859,92.75,7.94652611]
[1773631868230,29.39778631,92.839,92.73,7.94652611]
[1773631868425,29.39778631,92.839,92.725,33.96]
[1773631868628,29.39778631,92.795,92.668,33.96]
[1773631868827,29.39778631,92.879,92.71,7.94652611]
[1773631869127,29.39778631,92.829,92.7,7.94652611]
[1773631869331,29.39778631,92.829,92.72,7.94652611]
[1773631870332,29.39778631,92.829,92.71,7.94652611]
[1773631870631,29.39778631,92.829,92.695,33.94]
[1773631870632,29.39778631,92.829,92.75,7.94652611]
[1773631870822,29.39778631,92.829,92.695,33.94]
[1773631871024,29.39778631,92.829,92.72,7.94652611]
[1773631871425,33.96,92.878,92.72,7.94652611]
[1773631871426,29.34032855,92.819,92.72,7.94652611]
[1773631872338,29.2879209,92.845,92.76,7.94652611]
[1773631872833,29.2879209,92.845,92.74,7.94652611]
[1773631873829,29.2879209,92.845,92.76,7.94652611]
[1773631874035,29.56390454,92.839,92.73,7.94652611]
[1773631874531,29.56390454,92.839,92.656,19.423]
[1773631874730,29.47717743,92.819,92.7,7.94652611]
[1773631875233,31.63117743,92.819,92.7,7.94652611]
[1773631875630,31.63117743,92.819,92.72,7.94652611]
[1773631875631,29.47717743,92.819,92.72,7.94652611]
[1773631876625,29.47717743,92.819,92.677,33.94]
[1773631876830,29.47717743,92.819,92.71,7.94652611]
[1773631877136,29.43353238,92.784,92.681,32.57]
[1773631877334,29.43353238,92.808,92.71,7.94652611]
[1773631877827,29.43353238,92.793,92.666,33.94]
[1773631878034,29.43353238,92.793,92.68,7.94652611]
[1773631878933,29.43353238,92.793,92.7,7.94652611]
[1773631879332,29.4693269,92.839,92.72,7.94652611]
[1773631879534,29.4693269,92.882,92.8,7.94652611]
[1773631879833,107.467,93.038,92.8,7.94652611]
[1773631879834,33.94,93.002,92.84,7.94652611]
[1773631880033,33.94,93.056,92.89,7.94652611]
[1773631880334,189.64,93.119,92.8,7.94652611]
[1773631880335,7.94652611,92.96,92.84,7.94652611]
[1773631880533,7.94652611,92.92,92.81,7.94652611]
[1773631880728,33.94,92.995,92.781,32.57]
[1773631880933,7.94652611,92.89,92.77,7.94652611]
[1773631881127,7.94652611,92.96,92.79,7.94652611]
[1773631881333,7.94652611,92.96,92.726,33.94]
[1773631881334,7.94652611,92.92,92.726,33.94]
[1773631881539,7.94652611,92.91,92.79,7.94652611]
[1773631881836,21.06685301,92.909,92.79,7.94652611]
[1773631882235,21.06685301,92.909,92.81,7.94652611]
[1773631882539,21.06685301,92.909,92.83,7.94652611]
[1773631882736,21.06685301,92.909,92.737,19.406]
[1773631882737,21.06685301,92.909,92.8,7.94652611]
[1773631882932,21.31029168,92.939,92.84,7.94652611]
[1773631883133,21.31029168,92.939,92.777,32.57]
[1773631883333,21.31029168,92.939,92.81,7.94652611]
[1773631884627,20.84530218,92.919,92.79,7.94652611]
[1773631885035,20.84530218,92.919,92.81,7.94652611]
[1773631885234,20.84530218,92.919,92.79,7.94652611]
[1773631885428,21.10850575,92.899,92.79,7.94652611]
[1773631886533,21.10850575,92.899,92.81,7.94652611]
[1773631886739,21.10850575,92.899,92.83,7.94652611]
[1773631886931,21.10850575,92.899,92.81,7.94652611]
[1773631887338,21.10850575,92.899,92.8,7.94652611]
[1773631887532,12.7826014,93.104,92.82,7.94652611]
[1773631887740,7.94652611,92.97,92.841,18.53007608]
[1773631888038,7.94652611,92.97,92.81,62.0]
[1773631888039,7.94652611,92.99,92.86,7.94652611]
[1773631888238,7.94652611,92.97,92.86,7.94652611]
[1773631889535,19.71671812,92.969,92.86,7.94652611]
[1773631889932,19.71671812,92.969,92.854,18.53007608]
[1773631890235,19.71671812,92.949,92.84,7.94652611]
[1773631890440,19.71671812,92.949,92.829,18.53007608]
[1773631890441,19.71671812,92.929,92.829,18.53007608]
[1773631893939,19.71671812,92.909,92.806,18.53007608]
[1773631894939,19.71671812,92.899,92.806,18.53007608]
[1773631896041,19.71671812,92.899,92.781,18.53007608]
[1773631897242,19.71671812,92.879,92.781,18.53007608]
[1773631898746,19.71671812,92.879,92.751,18.53007608]
[1773631899147,19.71671812,92.859,92.751,18.53007608]
[1773631899544,19.71671812,92.859,92.753,18.53007608]
[1773631899742,19.71671812,92.839,92.753,18.53007608]
[1773631900143,19.71671812,92.839,92.73,7.94652611]
[1773631900340,19.71671812,92.839,92.731,18.53007608]
[1773631901140,33.92,92.889,92.715,9.33163259]
[1773631901141,19.71671812,92.859,92.751,18.53007608]
[1773631901540,33.92,92.889,92.751,18.53007608]
[1773631901541,19.71671812,92.839,92.751,18.53007608]
[1773631902542,19.71671812,92.839,92.72,7.94652611]
[1773631902543,19.71671812,92.839,92.721,18.53007608]
[1773631902753,19.71671812,92.829,92.721,18.53007608]
[1773631903454,19.18462586,92.95,92.761,18.53007608]
[1773631903646,7.94652611,92.87,92.761,18.53007608]
[1773631904845,7.94652611,92.89,92.761,18.53007608]
[1773631905046,7.94652611,92.87,92.761,18.53007608]
[1773631905447,19.71671812,92.869,92.761,18.53007608]
[1773631906252,19.71671812,92.869,92.76,7.94652611]
[1773631906253,19.71671812,92.869,92.763,18.53007608]
[1773631906551,19.71671812,92.869,92.765,18.53007608]
[1773631906854,19.71671812,92.869,92.764,10.17158101]
[1773631906855,19.71671812,92.932,92.801,18.53007608]
[1773631907155,19.71671812,92.932,92.783,9.33163259]
[1773631907156,19.71671812,92.932,92.831,18.53007608]
[1773631907343,19.71671812,92.929,92.833,18.53007608]
[1773631907544,19.71671812,92.929,92.835,18.53007608]
[1773631907753,19.71671812,92.929,92.841,18.53007608]
[1773631907945,19.71671812,92.929,92.842,10.17158101]
[1773631908144,19.71671812,92.929,92.843,10.17158101]
[1773631908343,19.71671812,92.929,92.844,10.17158101]
[1773631908547,19.71671812,92.929,92.845,10.17158101]
[1773631908748,19.71671812,92.929,92.846,10.17158101]
[1773631908951,19.71671812,92.929,92.847,10.17158101]
[1773631909152,19.71671812,92.929,92.848,10.17158101]
[1773631909352,19.71671812,92.929,92.849,10.17158101]
[1773631909553,19.71671812,92.929,92.85,10.17158101]
[1773631909857,7.94652611,92.92,92.851,10.17158101]
[1773631910049,7.94652611,92.94,92.853,18.53007608]
[1773631910247,19.71671812,92.939,92.854,28.70165709]
[1773631910454,19.71671812,92.939,92.856,18.53007608]
[1773631910654,19.71671812,92.939,92.857,10.17158101]
[1773631910954,19.71671812,92.939,92.861,18.53007608]
[1773631911155,19.71671812,92.939,92.862,10.17158101]
[1773631911355,19.71671812,92.997,92.864,18.53007608]
[1773631911550,19.71671812,92.997,92.827,9.33163259]
[1773631911551,19.71671812,92.979,92.866,18.53007608]
[1773631911747,19.71671812,92.979,92.868,18.53007608]
[1773631911956,19.71671812,92.979,92.867,10.17158101]
[1773631911957,19.71671812,92.979,92.881,19.29663886]
[1773631912153,19.71671812,92.979,92.883,19.29663886]
[1773631912456,19.71671812,92.979,92.884,29.46821987]
[1773631912654,20.68855245,92.969,92.885,10.17158101]
[1773631912856,20.68855245,92.969,92.886,10.17158101]
[1773631913154,20.68855245,92.969,92.887,10.17158101]
[1773631913357,20.68855245,92.969,92.888,10.17158101]
[1773631913559,20.68855245,92.969,92.889,10.17158101]
[1773631913850,20.68855245,92.969,92.89,10.17158101]
[1773631914051,20.68855245,92.969,92.891,10.17158101]
[1773631914256,20.68855245,92.969,92.862,19.29663886]
[1773631914257,20.68855245,92.969,92.892,10.17158101]
[1773631914457,20.68855245,92.969,92.893,10.17158101]
[1773631914657,20.68855245,92.969,92.829,46.71190974]
[1773631914658,20.92850481,92.949,92.894,10.17158101]
[1773631914959,20.92850481,92.949,92.895,10.17158101]
[1773631915155,20.92850481,92.949,92.896,10.17158101]
[1773631915355,20.92850481,92.949,92.897,10.17158101]
[1773631915554,20.92850481,92.949,92.898,10.17158101]
[1773631915761,20.92850481,92.989,92.9,19.72666151]
[1773631916061,20.92850481,92.989,92.901,10.17158101]
[1773631916256,20.92850481,92.989,92.902,10.17158101]
[1773631916558,20.92850481,92.989,92.903,10.17158101]
[1773631916755,20.92850481,92.979,92.904,10.17158101]
[1773631916949,20.92850481,92.979,92.905,10.17158101]
[1773631917155,20.92850481,92.979,92.906,10.17158101]
[1773631917359,20.92850481,92.959,92.907,10.17158101]
[1773631917562,20.92850481,92.959,92.908,10.17158101]
[1773631917760,20.92850481,92.959,92.909,10.17158101]
[1773631917960,20.92850481,92.959,92.91,10.17158101]
[1773631918161,20.92850481,92.959,92.877,19.72666151]
[1773631918360,20.92850481,92.959,92.878,10.1254785]
[1773631918563,20.92850481,92.959,92.879,10.1254785]
[1773631918757,20.92850481,92.959,92.88,10.1254785]
[1773631919060,20.92850481,92.959,92.881,10.1254785]
[1773631919259,20.92850481,92.959,92.882,10.1254785]
[1773631919459,20.92850481,92.959,92.883,10.1254785]
[1773631919660,20.92850481,92.959,92.884,10.1254785]
[1773631919862,20.92850481,92.959,92.885,10.1254785]
[1773631920055,20.92850481,92.959,92.886,10.1254785]
[1773631920261,20.92850481,92.959,92.887,10.1254785]
[1773631920464,20.92850481,92.959,92.888,10.1254785]
[1773631920657,20.92850481,92.959,92.889,10.1254785]
[1773631920856,20.92850481,92.959,92.89,10.1254785]
[1773631921060,20.92850481,92.979,92.892,19.72666151]
[1773631921262,20.92850481,92.979,92.894,19.72666151]
[1773631921560,20.92850481,92.979,92.834,12.78782744]
[1773631921561,20.92850481,92.979,92.896,19.72666151]
[1773631921761,20.92850481,92.979,92.898,19.72666151]
[1773631921955,20.92850481,92.979,92.9,19.72666151]
[1773631922155,7.94652611,93.0,92.902,19.72666151]
[1773631922365,7.94652611,93.0,92.904,19.72666151]
[1773631922366,20.92850481,92.999,92.904,19.72666151]
[1773631922562,20.92850481,92.979,92.905,10.1254785]
[1773631922860,20.92850481,92.979,92.906,10.1254785]
[1773631923065,20.92850481,92.979,92.907,10.1254785]
[1773631923263,20.92850481,92.979,92.908,10.1254785]
[1773631923461,20.92850481,92.979,92.909,10.1254785]
[1773631923663,7.94652611,92.96,92.91,10.1254785]
[1773631923858,20.92850481,92.979,92.911,10.1254785]
[1773631924060,20.92850481,92.979,92.898,19.72666151]
[1773631924061,20.92850481,92.979,92.912,10.1254785]
[1773631924365,20.92850481,92.979,92.913,10.1254785]
[1773631924566,20.92850481,92.979,92.914,10.1254785]
[1773631924767,20.92850481,92.979,92.915,10.1254785]
[1773631924961,20.92850481,92.979,92.916,10.1254785]
[1773631925163,20.92850481,92.979,92.917,10.1254785]
[1773631925363,20.92850481,92.979,92.918,10.1254785]
[1773631925564,20.92850481,92.979,92.919,10.1254785]
[1773631925765,20.92850481,92.979,92.92,10.1254785]
[1773631926068,20.92850481,92.979,92.921,10.1254785]
[1773631926363,20.92850481,92.979,92.922,10.1254785]
[1773631926665,20.92850481,92.979,92.923,10.1254785]
[1773631926868,20.92850481,92.979,92.924,10.1254785]
[1773631927069,20.92850481,92.979,92.925,10.1254785]
[1773631927263,7.93823419,92.98,92.898,19.72666151]
[1773631927264,7.93823419,92.98,92.926,10.1254785]
[1773631927568,7.93823419,92.98,92.89,62.0]
[1773631927569,20.92850481,93.019,92.928,19.72666151]
[1773631927769,20.92850481,93.019,92.93,19.72666151]
[1773631927972,20.92850481,93.019,92.932,19.72666151]
[1773631928174,20.92850481,93.019,92.934,19.72666151]
[1773631928467,20.92850481,93.019,92.936,19.72666151]
[1773631928667,20.92850481,93.019,92.938,19.72666151]
[1773631928865,20.92850481,93.019,92.939,29.85214001]
[1773631929061,20.92850481,93.019,92.94,10.1254785]
[1773631929261,20.92850481,93.019,92.941,10.1254785]
[1773631929462,20.92850481,93.019,92.942,10.1254785]
[1773631929670,20.92850481,92.999,92.943,10.1254785]
[1773631929873,20.92850481,92.999,92.944,10.1254785]
[1773631930067,7.93823419,92.98,92.945,0.0004785]
[1773631930266,7.93823419,92.98,92.914,19.72666151]
[1773631931065,20.92850481,92.999,92.914,19.72666151]
[1773631931264,19.334,93.085,92.914,19.72666151]
[1773631931265,20.92850481,93.022,92.914,19.72666151]
[1773631932269,20.92850481,93.039,92.931,19.72666151]
[1773631933165,20.92850481,93.019,92.931,19.72666151]
[1773631933476,20.92850481,93.029,92.931,19.72666151]
[1773631933975,20.92850481,93.073,92.931,19.72666151]
[1773631934175,20.92850481,93.073,92.98,27.6648957]
[1773631934475,20.92850481,93.059,92.98,19.72666151]
[1773631935074,20.92850481,93.099,92.98,19.72666151]
[1773631935376,20.92850481,93.099,92.991,19.72666151]
[1773631936376,20.92850481,93.123,93.011,19.72666151]
[1773631936576,20.92850481,93.119,93.011,19.72666151]
[1773631937172,7.93823419,93.09,93.011,19.72666151]
[1773631937480,20.92850481,93.089,92.981,19.72666151]
[1773631937679,20.92850481,93.069,92.981,19.72666151]
[1773631937881,20.92850481,93.049,92.957,19.72666151]
[1773631938374,20.92850481,93.017,92.931,19.72666151]
[1773631938677,19.334,93.086,92.931,19.72666151]
[1773631938678,20.92850481,93.039,92.931,19.72666151]
[1773631939480,20.92850481,93.065,92.951,19.72666151]
[1773631940278,20.92850481,93.049,92.951,19.72666151]
[1773631940582,7.93823419,93.03,92.951,19.72666151]
[1773631940782,20.92850481,93.049,92.951,19.72666151]
[1773631941384,20.92850481,93.049,92.961,19.72666151]
[1773631941974,20.92850481,93.049,92.962,9.36735039]
[1773631942284,20.92850481,93.049,92.964,21.42156815]
[1773631942474,33.88,93.118,92.981,21.42156815]
[1773631942475,20.41032506,93.089,92.981,21.42156815]
[1773631942673,7.93823419,93.07,92.983,21.42156815]
[1773631942882,20.41032506,93.069,92.985,21.42156815]
[1773631943079,20.41032506,93.069,92.987,21.42156815]
[1773631943378,20.41032506,93.099,93.001,21.42156815]
[1773631943579,20.41032506,93.099,93.003,21.42156815]
[1773631943884,7.93823419,93.09,93.005,21.42156815]
[1773631944182,20.41032506,93.089,92.991,21.42156815]
[1773631944383,20.41032506,93.089,92.993,21.42156815]
[1773631944581,20.41032506,93.089,92.995,21.42156815]
[1773631944788,20.41032506,93.089,92.997,21.42156815]
[1773631944983,20.41032506,93.079,92.997,21.42156815]
[1773631945383,20.41032506,93.079,92.902,12.68868296]
[1773631945384,20.41032506,93.079,92.93,21.42156815]
[1773631945579,33.86,93.169,92.971,21.42156815]
[1773631945580,20.41032506,93.081,92.971,21.42156815]
[1773631945775,20.41032506,93.081,92.973,21.42156815]
[1773631945979,20.41032506,93.081,92.926,33.86]
[1773631945980,20.41032506,93.081,92.991,21.42156815]
[1773631946185,20.41032506,93.13,93.021,21.42156815]
[1773631946382,20.41032506,93.13,93.023,21.42156815]
[1773631946585,20.41032506,93.13,93.025,21.42156815]
[1773631946783,20.41032506,93.119,93.026,30.78037918]
[1773631946975,20.41032506,93.119,93.026,21.42156815]
[1773631947285,20.41032506,93.119,93.028,21.42156815]
[1773631948083,20.41032506,93.119,93.03,21.42156815]
[1773631948283,20.41032506,93.119,93.032,21.42156815]
[1773631948484,20.41032506,93.119,93.034,21.42156815]
[1773631948882,20.41032506,93.119,93.011,21.42156815]
[1773631949088,20.41032506,93.119,93.013,21.42156815]